fUSD/lending_fUSD_20260120
["ID","MTS","AMOUNT","RATE_DAILY","PERIOD"]
[402737616,1768867847590,-151.0,0.000248,2]
[402737617,1768867847599,-151.0,0.000248,2]
[402737618,1768867847610,-151.0,0.000248,2]
[402737619,1768867847620,-151.0,0.000248,2]
[402737620,1768867847630,-151.0,0.000248,2]
[402737621,1768867847639,-151.0,0.000248,2]
[402737622,1768867847649,-151.0,0.000248,2]
[402737623,1768867847658,-151.0,0.000248,2]
[402737624,1768867847672,-151.0,0.000248,2]
[402737625,1768867847682,-151.0,0.000248,2]
[402737626,1768867847691,-151.0,0.000248,2]
[402737627,1768867847701,-151.0,0.000248,2]
[402737628,1768867847711,-151.0,0.000248,2]
[402737629,1768867847721,-151.0,0.000248,2]
[402737630,1768867847731,-1412.5099,0.000248,2]
[402737631,1768867847741,-1412.50991,0.000248,2]
[402737632,1768867847751,-1412.50991,0.000248,2]
[402737633,1768867847761,-16495.3882911,0.000248,2]
[402737634,1768867847771,-1647.9011929,0.000248,2]
[402737635,1768867847783,-425.374007,0.000248,2]
[402737636,1768867847797,-500.0,0.00024899,2]
[402737637,1768867847807,-500.0,0.00024899,2]
[402737638,1768867847817,-153.595835,0.000249,7]
[402737639,1768867847827,-153.595835,0.000249,7]
[402737640,1768867847836,-153.595835,0.000249,7]
[402737641,1768867847846,-153.595835,0.000249,7]
[402737642,1768867847856,-151.0,0.000249,7]
[402737643,1768867847866,-151.0,0.000249,7]
[402737644,1768867847877,-151.0,0.000249,7]
[402737645,1768867847886,-260.926445,0.000249,7]
[402737646,1768867847897,-260.926445,0.000249,7]
[402737647,1768867847906,-260.926445,0.000249,7]
[402737648,1768867847917,-260.926445,0.000249,7]
[402737649,1768867847926,-151.0,0.000249,7]
[402737650,1768867847937,-151.0,0.000249,7]
[402737651,1768867847947,-197.106012,0.000249,7]
[402737652,1768867847957,-151.0,0.000249,7]
[402737653,1768867847967,-151.0,0.000249,7]
[402737654,1768867847976,-151.0,0.000249,7]
[402737655,1768867847986,-151.0,0.000249,7]
[402737656,1768867847995,-151.0,0.000249,7]
[402737657,1768867848005,-788.482212,0.000249,7]
[402737658,1768867848015,-788.482212,0.000249,7]
[402737659,1768867848024,-788.482212,0.000249,7]
[402737660,1768867848034,-788.482212,0.000249,7]
[402737661,1768867848045,-151.0,0.000249,7]
[402737662,1768867848053,-151.0,0.000249,7]
[402737663,1768867848074,-588.602249,0.000249,7]
[402737664,1768867848085,-151.0,0.000249,7]
[402737665,1768867848095,-588.602249,0.000249,7]
[402737666,1768867848106,-588.602249,0.000249,7]
[402737667,1768867848116,-588.602249,0.000249,7]
[402737668,1768867848125,-452.702253,0.000249,7]
[402737669,1768867848135,-355.56352886,0.000249,7]
[402737670,1768867848151,-97.13872414,0.000249,7]
[402737671,1768867848160,-452.702253,0.000249,7]
[402737672,1768867848170,-452.702253,0.000249,7]
[402737673,1768867848179,-2165.091474,0.000249,7]
[402737674,1768867848188,-1283.50985377,0.000249,7]
[402737675,1768867848200,-881.58162023,0.000249,7]
[402737676,1768867848211,-2165.091474,0.000249,7]
[402737677,1768867848221,-2165.091474,0.000249,7]
[402737678,1768867848232,-172.511044,0.000249,7]
[402737679,1768867848242,-172.511044,0.000249,7]
[402737680,1768867848252,-172.511044,0.000249,7]
[402737681,1768867848262,-172.511044,0.000249,7]
[402737682,1768867848273,-519.044027,0.000249,7]
[402737683,1768867848282,-519.044027,0.000249,7]
[402737684,1768867848292,-519.044027,0.000249,7]
[402737685,1768867848302,-519.044027,0.000249,7]
[402737686,1768867848312,-18817.53595143,0.000249,2]
[402737687,1768867848331,-424.00898094,0.000249,2]
[402737688,1768867848352,-2511.8867267,0.000249,2]
[402737689,1768867848363,-13634.60820723,0.000249,2]
[402737690,1768867848375,-1821.82014999,0.000249,2]
[402737691,1768867848785,-400.0,0.000179,4]
[402737692,1768867848796,-566.0,0.00020688,2]
[402737693,1768867848806,-500.0,0.00022999,2]
[402737694,1768867848816,-3333.19617208,0.000249,2]
[402737695,1768867848832,-3402.27951613,0.000249,2]
[402737696,1768867848842,-290.639449,0.000249,7]
[402737697,1768867848853,-290.639449,0.000249,7]
[402737698,1768867848863,-16.44233517,0.000249,7]
[402737699,1768867848874,-134.55766483,0.000249,7]
[402737700,1768867848884,-290.639449,0.000249,7]
[402737701,1768867848894,-151.0,0.000249,7]
[402737702,1768867848904,-290.639449,0.000249,7]
[402737703,1768867848914,-151.0,0.000249,7]
[402737704,1768867848924,-151.0,0.000249,7]
[402737705,1768867848935,-2532.92622956,0.0002491,2]
[402737706,1768867848945,-784.0,0.00024959,2]
[402737707,1768867848955,-1000.0,0.00024967,2]
[402737708,1768867848965,-2829.10520527,0.00025,2]
[402737709,1768867848975,-531.0,0.00025,5]
[402737710,1768867848984,-450.0,0.00025,2]
[402737711,1768867848993,-150.0,0.00025,2]
[402737712,1768867849003,-544.0,0.00025001,2]
[402737713,1768867849013,-544.0,0.00025036,2]
[402737714,1768867849022,-1101.0,0.00025065,2]
[402737715,1768867849032,-9125.68,0.000251,7]
[402737716,1768867849044,-544.0,0.00025125,2]
[402737717,1768867849054,-168.0,0.0002514,2]
[402737718,1768867849063,-471.70879311,0.0002515,2]
[402737719,1768867849073,-544.0,0.00025196,2]
[402737720,1768867849082,-544.0,0.00025197,2]
[402737721,1768867849092,-155.0,0.00025199,2]
[402737722,1768867849101,-544.0,0.00025244,2]
[402737723,1768867849111,-283.0,0.0002528,10]
[402737724,1768867849120,-544.0,0.00025288,2]
[402737725,1768867849130,-544.0,0.00025293,2]
[402737726,1768867849140,-151.0,0.00025297,7]
[402737727,1768867849150,-273333.97,0.000253,2]
[402737728,1768867849159,-452.702253,0.000253,7]
[402737729,1768867849168,-452.702253,0.000253,7]
[402737730,1768867849178,-452.702253,0.000253,7]
[402737731,1768867849188,-452.702253,0.000253,7]
[402737732,1768867849198,-2165.091474,0.000253,7]
[402737733,1768867849207,-2165.091474,0.000253,7]
[402737734,1768867849217,-2165.091474,0.000253,7]
[402737735,1768867849226,-2165.091474,0.000253,7]
[402737736,1768867849236,-3198.30907281,0.00025367,2]
[402737737,1768867849245,-544.0,0.00025439,2]
[402737738,1768867849256,-16218.0,0.00025443,2]
[402737739,1768867849266,-168.0,0.00025443,2]
[402737740,1768867849275,-544.0,0.00025495,2]
[402737741,1768867849284,-784.0,0.00025521,3]
[402737742,1768867849293,-500.0,0.00025552,7]
[402737743,1768867849302,-1800.0,0.00025552,7]
[402737744,1768867849311,-900.0,0.00025552,7]
[402737745,1768867849320,-544.0,0.00025606,2]
[402737746,1768867849330,-1587.50601412,0.00025632,33]
[402737747,1768867849339,-174.4,0.00025649,2]
[402737748,1768867849348,-172.69,0.00025669,2]
[402737749,1768867849357,-8227.85019573,0.00025705,2]
[402737750,1768867849368,-404.73403491,0.00025705,2]
[402737751,1768867849383,-926.9,0.00025705,2]
[402737752,1768867849394,-4688.98130205,0.00025705,2]
[402737753,1768867849405,-1969.53446731,0.00025705,2]
[402737754,1768867849414,-1734.46553269,0.00025718,2]
[402737755,1768867849463,-1587.635991,0.00025718,2]
[402737756,1768867849474,-521.50544742,0.00025718,2]
[402737757,1768868019099,390.48644295,0.00015366,2]
[402737759,1768868244260,265.3,0.00027397,120]
[402737760,1768868324540,600.0,0.00027397,120]
[402737761,1768868621853,2944.96,0.00013688,2]
[402737763,1768868789471,-212.87058623,0.00015813,2]
[402737764,1768868792702,-163.71742833,0.00015813,2]
[402737765,1768868804512,-234.69632619,0.00015733,2]
[402737766,1768868819400,-85.68520681,0.00015733,2]
[402737767,1768868819424,-80.97479319,0.00015813,2]
[402737768,1768868832703,582.19,0.0002739,120]
[402737769,1768868873118,5221.48377759,0.00027,120]
[402737775,1768869032221,-290.79470059,0.00015849,2]
[402737777,1768869032234,-309.20529941,0.00015849,2]
[402737779,1768869032244,-322.89145948,0.00015873,2]
[402737782,1768869032268,-131.28014052,0.00015873,2]
[402737783,1768869032278,-500.0,0.00015973,2]
[402737784,1768869032287,-500.0,0.00015973,2]
[402737785,1768869032297,-500.0,0.00015973,2]
[402737786,1768869032306,-500.0,0.00015973,2]
[402737787,1768869032316,-500.0,0.00015973,2]
[402737788,1768869032326,-241.36183738,0.00015973,2]
[402737789,1768869032336,-500.0,0.00015973,2]
[402737790,1768869032346,-300.0,0.00015985,2]
[402737791,1768869032355,-1200.0,0.00015985,2]
[402737792,1768869032365,-300.0,0.00015985,2]
[402737793,1768869032375,-4668.7084016,0.00015986,2]
[402737794,1768869032387,-3031.26178472,0.00015986,2]
[402737795,1768869032396,-555.3343111,0.00016,2]
[402737796,1768869032406,-926.0,0.00016438,2]
[402737797,1768869032415,-942.0809,0.00016441,2]
[402737798,1768869032425,-1222.76419657,0.00016444,2]
[402737799,1768869032440,-500.0,0.00016515,2]
[402737800,1768869032449,-500.0,0.00016515,2]
[402737801,1768869032458,-500.0,0.00016515,2]
[402737802,1768869032468,-500.0,0.00016515,2]
[402737803,1768869032478,-500.0,0.00016515,2]
[402737804,1768869032489,-500.0,0.00016515,2]
[402737805,1768869032500,-500.0,0.00016515,2]
[402737806,1768869032510,-500.0,0.00016515,2]
[402737808,1768869032520,-500.0,0.00016515,2]
[402737810,1768869032530,-500.0,0.00016515,2]
[402737812,1768869032539,-500.0,0.00016515,2]
[402737814,1768869032549,-500.0,0.00016515,2]
[402737816,1768869032558,-500.0,0.00016515,2]
[402737818,1768869032567,-500.0,0.00016515,2]
[402737820,1768869032576,-500.0,0.00016515,2]
[402737822,1768869032585,-500.0,0.00016515,2]
[402737824,1768869032595,-500.0,0.00016515,2]
[402737826,1768869032604,-29.79253716,0.00016515,2]
[402737828,1768869032616,-470.20746284,0.00016515,2]
[402737829,1768869032626,-500.0,0.00016515,2]
[402737830,1768869032636,-500.0,0.00016515,2]
[402737831,1768869032646,-500.0,0.00016515,2]
[402737832,1768869032656,-500.0,0.00016515,2]
[402737833,1768869032665,-500.0,0.00016515,2]
[402737834,1768869032676,-500.0,0.00016515,2]
[402737835,1768869032687,-500.0,0.00016515,2]
[402737836,1768869032696,-500.0,0.00016515,2]
[402737837,1768869032706,-500.0,0.00016515,2]
[402737838,1768869032716,-500.0,0.00016515,2]
[402737839,1768869032726,-500.0,0.00016515,2]
[402737840,1768869032736,-500.0,0.00016515,2]
[402737841,1768869032747,-500.0,0.00016515,2]
[402737842,1768869032758,-500.0,0.00016515,2]
[402737843,1768869032767,-500.0,0.00016515,2]
[402737844,1768869032778,-320.21932318,0.00016515,2]
[402737845,1768869032794,-500.0,0.00016515,2]
[402737846,1768869032805,-500.0,0.00016515,2]
[402737847,1768869032815,-500.0,0.00016515,2]
[402737848,1768869032825,-500.0,0.00016515,2]
[402737849,1768869032836,-500.0,0.00016515,2]
[402737850,1768869032846,-500.0,0.00016515,2]
[402737851,1768869032856,-500.0,0.00016515,2]
[402737852,1768869032866,-500.0,0.00016515,2]
[402737853,1768869032876,-500.0,0.00016515,2]
[402737854,1768869032885,-500.0,0.00016515,2]
[402737855,1768869032896,-500.0,0.00016515,2]
[402737856,1768869032906,-389.13410615,0.00016515,2]
[402737857,1768869032920,-110.86589385,0.00016515,2]
[402737858,1768869032933,-500.0,0.00016515,2]
[402737859,1768869032943,-321.73410615,0.00016515,2]
[402737860,1768869032975,-178.26589385,0.00016515,2]
[402737861,1768869032985,-342.2325726,0.00016515,2]
[402737862,1768869032998,-157.7674274,0.00016515,2]
[402737863,1768869033008,-500.0,0.00016515,2]
[402737864,1768869033018,-500.0,0.00016515,2]
[402737865,1768869033028,-500.0,0.00016515,2]
[402737866,1768869033038,-500.0,0.00016515,2]
[402737867,1768869033049,-500.0,0.00016515,2]
[402737868,1768869033059,-500.0,0.00016515,2]
[402737869,1768869033070,-135.54118864,0.00016515,2]
[402737870,1768869033094,-364.45881136,0.00016515,2]
[402737871,1768869033104,-500.0,0.00016515,2]
[402737872,1768869033114,-500.0,0.00016515,2]
[402737873,1768869033124,-500.0,0.00016515,2]
[402737874,1768869033134,-500.0,0.00016515,2]
[402737875,1768869033765,-523.48068702,0.00016515,2]
[402737876,1768869033786,-500.0,0.00016515,2]
[402737877,1768869033798,-600.0,0.00016515,2]
[402737878,1768869033808,-500.0,0.00016515,2]
[402737879,1768869033817,-500.0,0.00016515,2]
[402737880,1768869033827,-500.0,0.00016515,2]
[402737881,1768869033838,-500.0,0.00016515,2]
[402737882,1768869033847,-500.0,0.00016515,2]
[402737883,1768869033857,-500.0,0.00016515,2]
[402737884,1768869033867,-500.0,0.00016515,2]
[402737885,1768869033877,-500.0,0.00016515,2]
[402737886,1768869033888,-500.0,0.00016515,2]
[402737887,1768869033901,-480.97877395,0.00016515,2]
[402737888,1768869033911,-500.0,0.00016515,2]
[402737889,1768869033921,-500.0,0.00016515,2]
[402737890,1768869033935,-500.0,0.00016515,2]
[402737891,1768869033946,-500.0,0.00016515,2]
[402737892,1768869033957,-500.0,0.00016517,2]
[402737893,1768869033967,-165.99,0.00016518,2]
[402737894,1768869033979,-9999.99,0.00016518,2]
[402737895,1768869033988,-559.9,0.00016518,2]
[402737896,1768869034000,-1835.03,0.00016518,2]
[402737897,1768869034012,-1852.42,0.00016529,2]
[402737898,1768869034023,-2424.13,0.00016539,2]
[402737899,1768869034034,-341.40498599,0.0001654,2]
[402737900,1768869034045,-500.0,0.0001654,2]
[402737901,1768869034055,-500.0,0.0001654,2]
[402737902,1768869034064,-500.0,0.0001654,2]
[402737903,1768869034074,-500.0,0.0001654,2]
[402737904,1768869034084,-500.0,0.0001654,2]
[402737905,1768869034093,-1000.0,0.0001654,2]
[402737906,1768869034103,-500.0,0.0001654,2]
[402737907,1768869034113,-809.58,0.0001654,2]
[402737908,1768869034123,-398.96795075,0.00016691,2]
[402737909,1768869034133,-250.97564419,0.00016691,2]
[402737910,1768869034143,-171.01,0.0001672,2]
[402737911,1768869034153,-151.0,0.00016758,2]
[402737912,1768869034163,-151.0,0.00016758,2]
[402737913,1768869034172,-151.0,0.00016758,2]
[402737914,1768869034182,-500.0,0.00016791,2]
[402737915,1768869034192,-809.58,0.00016814,2]
[402737916,1768869034202,-250.0,0.00017,2]
[402737917,1768869034212,-11934.90738885,0.00017,2]
[402737918,1768869034222,-160.0,0.00017,2]
[402737919,1768869034233,-500.0,0.00017065,2]
[402737920,1768869034243,-809.58,0.00017088,2]
[402737921,1768869034252,-480.91,0.00017315,2]
[402737922,1768869034262,-7699.97018632,0.00017319,2]
[402737923,1768869034280,-500.0,0.00017339,2]
[402737924,1768869034293,-151.0,0.0001736,2]
[402737925,1768869034303,-151.0,0.0001736,2]
[402737926,1768869034313,-151.0,0.0001736,2]
[402737927,1768869034323,-151.0,0.0001736,2]
[402737928,1768869034332,-151.0,0.0001736,2]
[402737929,1768869034342,-151.0,0.0001736,2]
[402737930,1768869034351,-200.0,0.0001736,2]
[402737931,1768869034364,-151.0,0.0001736,2]
[402737932,1768869034374,-286.0113752,0.0001736,2]
[402737933,1768869034383,-151.0,0.0001736,2]
[402737934,1768869034392,-151.0,0.0001736,2]
[402737935,1768869034401,-151.0,0.0001736,2]
[402737936,1768869034411,-151.0,0.0001736,2]
[402737937,1768869034421,-151.0,0.0001736,2]
[402737938,1768869034430,-200.0,0.0001736,2]
[402737939,1768869034439,-500.0,0.0001736,2]
[402737940,1768869034449,-809.58,0.00017362,2]
[402737941,1768869034458,-420.0,0.00017477,2]
[402737942,1768869034468,-377.0,0.00017477,2]
[402737943,1768869034477,-219.23124607,0.00017555,2]
[402737944,1768869034487,-1680.0,0.00017565,2]
[402737945,1768869034496,-809.58,0.00017636,2]
[402737946,1768869034505,-190.94027815,0.00017652,2]
[402737947,1768869034515,-217.16599754,0.00017652,2]
[402737948,1768869034524,-212.4912561,0.00017652,2]
[402737949,1768869034534,-479.8582797,0.00017652,2]
[402737950,1768869034544,-192.21950168,0.00017652,2]
[402737951,1768869034555,-500.0,0.00017652,2]
[402737952,1768869034564,-500.0,0.00017652,2]
[402737953,1768869034573,-500.0,0.00017652,2]
[402737954,1768869034583,-300.0,0.00017652,2]
[402737955,1768869034593,-300.0,0.00017652,2]
[402737956,1768869034602,-300.0,0.00017652,2]
[402737957,1768869034613,-500.0,0.00017652,2]
[402737958,1768869034627,-500.0,0.00017652,2]
[402737959,1768869034636,-500.0,0.00017652,2]
[402737960,1768869034646,-500.0,0.00017652,2]
[402737961,1768869034656,-500.0,0.00017652,2]
[402737962,1768869034665,-500.0,0.00017652,2]
[402737963,1768869034675,-500.0,0.00017652,2]
[402737964,1768869034685,-500.0,0.00017652,2]
[402737965,1768869034695,-500.0,0.00017652,2]
[402737966,1768869034704,-500.0,0.00017652,2]
[402737967,1768869034714,-500.0,0.00017652,2]
[402737968,1768869034723,-500.0,0.00017652,2]
[402737969,1768869034732,-500.0,0.00017652,2]
[402737970,1768869034742,-500.0,0.00017652,2]
[402737971,1768869034752,-500.0,0.00017652,2]
[402737972,1768869034762,-500.0,0.00017652,2]
[402737973,1768869034772,-645.98159977,0.00017652,2]
[402737974,1768869034782,-300.0,0.00017652,2]
[402737975,1768869034792,-300.0,0.00017652,2]
[402737976,1768869034803,-1000.0,0.00017652,2]
[402737977,1768869034812,-500.0,0.00017652,2]
[402737978,1768869034827,-497.33591243,0.00017652,2]
[402737979,1768869034837,-500.0,0.00017652,2]
[402737980,1768869034848,-980.52561235,0.00017688,2]
[402737981,1768869034858,-980.52561234,0.00017721,2]
[402737982,1768869034868,-980.52561234,0.00017753,2]
[402737983,1768869034878,-980.52561234,0.00017786,2]
[402737984,1768869034887,-2053.64781408,0.00017788,2]
[402737985,1768869034897,-123762.93678642,0.000178,2]
[402737986,1768869034907,-980.52561234,0.00017818,2]
[402737987,1768869034917,-2053.64781399,0.00017821,2]
[402737988,1768869034928,-980.52561234,0.00017851,2]
[402737989,1768869034938,-2053.64781399,0.00017853,2]
[402737990,1768869034948,-980.52561234,0.00017883,2]
[402737991,1768869034959,-2053.64781399,0.00017886,2]
[402737992,1768869034970,-319.5,0.00017888,2]
[402737993,1768869034981,-3299.94627476,0.000179,2]
[402737994,1768869034992,-755.6824661,0.000179,2]
[402737995,1768869035005,-755.68246608,0.00017903,2]
[402737996,1768869035016,-755.68246608,0.00017906,2]
[402737997,1768869035027,-200.0,0.00017908,2]
[402737998,1768869035037,-200.0,0.00017908,2]
[402737999,1768869035047,-500.0,0.00017908,2]
[402738000,1768869035057,-755.68246608,0.0001791,2]
[402738001,1768869035069,-809.61,0.0001791,2]
[402738002,1768869035080,-755.68246608,0.00017913,2]
[402738003,1768869035092,-980.52561234,0.00017916,2]
[402738004,1768869035104,-755.68246608,0.00017916,2]
[402738005,1768869035115,-2053.64781399,0.00017918,2]
[402738006,1768869035125,-980.52561234,0.00017948,2]
[402738007,1768869035136,-2053.64781399,0.00017951,2]
[402738008,1768869035147,-214.9044405,0.00017973,2]
[402738009,1768869035157,-980.52561234,0.00017981,2]
[402738010,1768869035167,-2053.64781399,0.00017983,2]
[402738011,1768869035178,-503.11871413,0.0001799,2]
[402738012,1768869035188,-503.11871413,0.0001799,2]
[402738013,1768869035198,-503.11871413,0.0001799,2]
[402738014,1768869035208,-165.08,0.0001799,2]
[402738015,1768869035218,-151.0,0.00017997,2]
[402738016,1768869035228,-300.0,0.00017999,2]
[402738017,1768869035238,-673054.66728145,0.00018,2]
[402738018,1768869036922,-564.489387,0.00018,2]
[402738019,1768869036936,-969.61981694,0.00018,2]
[402738020,1768869036947,-842.93928525,0.00018,2]
[402738021,1768869036958,-5422.72505615,0.00018,2]
[402738022,1768869036974,-22697.4128923,0.00018,2]
[402738023,1768869036986,-454.69711136,0.00018,2]
[402738024,1768869036998,-2450.9437083,0.00018,2]
[402738025,1768869037017,-289.4720602,0.00018,2]
[402738026,1768869037030,-29930.65192848,0.00018,2]
[402738027,1768869037042,-714.61055819,0.00018,2]
[402738028,1768869037054,-3668.11136025,0.00018,2]
[402738032,1768869038362,-354.0347142,0.00018,2]
[402738033,1768869038470,-4629.98808693,0.00018,2]
[402738034,1768869038482,-535.50973257,0.00018,2]
[402738035,1768869038494,-4502.56067671,0.00018,2]
[402738036,1768869038506,-3105.76493766,0.00018,2]
[402738037,1768869038518,-1952317.86225176,0.00018,2]
[402738038,1768869038571,-1000.0,0.00018,2]
[402738060,1768869040610,-5288.5435198,0.00018,2]
[402738061,1768869040725,-3332343.94325615,0.00018,2]
[402738062,1768869040832,-3210.48685374,0.00018,2]
[402738063,1768869040843,-306.19545673,0.00018,2]
[402738071,1768869046561,-173.62158172,0.000179,2]
[402738072,1768869046571,-2306.29909437,0.00018,2]
[402738074,1768869285465,10000.0,0.00015366,2]
[402738075,1768869295986,10000.0,0.00015366,2]
[402738076,1768869307080,10000.0,0.00015366,2]
[402738077,1768869313153,1206.31,0.00026463,120]
[402738078,1768869316281,10000.0,0.00015366,2]
[402738079,1768869339009,-359.29221162,0.00016338,2]
[402738084,1768869686834,-500.0,0.00015973,2]
[402738085,1768869712767,-195.0,0.00016077,2]
[402738086,1768869712788,-166.66,0.00016182,2]
[402738088,1768869809369,-1000.0,0.00016315,2]
[402738089,1768869809390,-1252.943,0.00016315,2]
[402738090,1768869809412,-2134.8029086,0.00016315,2]
[402738091,1768869847607,-195.0,0.00016326,2]
[402738092,1768869847630,-1200.0,0.00016337,2]
[402738093,1768869886023,-200.0,0.00016405,2]
[402738094,1768869886046,-500.0,0.00016405,2]
[402738095,1768869886067,-178.39,0.00016408,2]
[402738096,1768869907457,2155.3663441,0.00016315,2]
[402738097,1768869909435,-1200.0,0.00016413,2]
[402738098,1768869909456,-550.0,0.00016413,2]
[402738100,1768869943387,-246.67268049,0.00016414,2]
[402738101,1768869943415,-191.23897973,0.00016414,2]
[402738102,1768869943441,-562.42350455,0.00016414,2]
[402738103,1768869943466,-270.9335194,0.00016414,2]
[402738104,1768869943490,-158.15583047,0.00016414,2]
[402738105,1768869943516,-203.72301278,0.00016414,2]
[402738106,1768869943546,-500.0,0.00016414,2]
[402738107,1768869943575,-500.0,0.00016414,2]
[402738108,1768869943605,-500.0,0.00016414,2]
[402738109,1768869943635,-500.0,0.00016414,2]
[402738110,1768869943667,-500.0,0.00016414,2]
[402738111,1768869943698,-500.0,0.00016414,2]
[402738112,1768869943727,-500.0,0.00016414,2]
[402738113,1768869943760,-500.0,0.00016414,2]
[402738114,1768869943793,-179.31774116,0.00016414,2]
[402738115,1768869943827,-500.0,0.00016414,2]
[402738116,1768869943861,-500.0,0.00016414,2]
[402738117,1768869943888,-500.0,0.00016414,2]
[402738118,1768869943914,-500.00000001,0.00016414,2]
[402738119,1768869943939,-500.0,0.00016414,2]
[402738120,1768869980509,-558977.8023,0.00016415,2]
[402738121,1768869980533,-150.0,0.00016415,2]
[402738122,1768869989353,500.0,0.00016414,2]
[402738123,1768870002813,136174.8731,0.00016315,2]
[402738124,1768870036147,248.72844434,0.00016405,2]
[402738227,1768870233060,-300.0,0.00016437,2]
[402738228,1768870233069,-180.0,0.00016437,2]
[402738229,1768870233079,-110.38944181,0.00016438,2]
[402738230,1768870233438,-389.61055819,0.00016438,2]
[402738231,1768870233447,-500.0,0.00016438,2]
[402738232,1768870233459,-3486.48,0.00016438,2]
[402738233,1768870233469,-300.0,0.00016438,2]
[402738234,1768870233480,-300.0,0.00016438,2]
[402738235,1768870233490,-317.94575063,0.00016438,2]
[402738236,1768870233500,-300.0,0.00016438,2]
[402738237,1768870233510,-300.0,0.00016438,2]
[402738238,1768870233520,-468.14,0.00016451,2]
[402738239,1768870233531,-2098.29,0.00016451,2]
[402738240,1768870233540,-150.0,0.00016515,2]
[402738241,1768870233550,-166.66,0.00016523,2]
[402738242,1768870233560,-200.0,0.00016548,2]
[402738243,1768870233569,-500.0,0.00016561,2]
[402738244,1768870233579,-299.0,0.00016584,2]
[402738245,1768870233589,-3906.04054738,0.00016598,2]
[402738246,1768870233599,-150.0,0.00016615,2]
[402738247,1768870233609,-150.0,0.00016715,2]
[402738248,1768870233618,-150.0,0.00016815,2]
[402738249,1768870233628,-166.66,0.00016864,2]
[402738250,1768870233637,-150.0,0.00016915,2]
[402738251,1768870233646,-250.0,0.00017,2]
[402738252,1768870233656,-150.0,0.00017015,2]
[402738253,1768870233666,-468.14,0.00017068,2]
[402738254,1768870233676,-200.0,0.0001708,2]
[402738255,1768870233686,-150.0,0.00017115,2]
[402738256,1768870233695,-500.0,0.00017184,2]
[402738257,1768870233704,-2128.7929665,0.00017184,2]
[402738258,1768870233714,-166.66,0.00017204,2]
[402738259,1768870233723,-150.0,0.00017215,2]
[402738260,1768870233733,-161.85076816,0.00017315,2]
[402738261,1768870233742,-151.0,0.00017446,2]
[402738262,1768870233752,-151.0,0.00017446,2]
[402738263,1768870233761,-151.0,0.00017447,2]
[402738264,1768870233771,-151.0,0.00017447,2]
[402738265,1768870233780,-166.66,0.00017545,2]
[402738266,1768870233789,-1419.648,0.0001764,2]
[402738267,1768870233799,-1206.31,0.00017642,2]
[402738268,1768870233808,-408.98199245,0.00017652,2]
[402738269,1768870233818,-500.0,0.00017652,2]
[402738270,1768870233827,-500.0,0.00017652,2]
[402738271,1768870233836,-558.28,0.00017652,2]
[402738272,1768870233845,-500.0,0.00017652,2]
[402738273,1768870233855,-500.0,0.00017652,2]
[402738274,1768870233864,-500.0,0.00017652,2]
[402738275,1768870233874,-468.14,0.00017685,2]
[402738276,1768870233884,-500.0,0.00017799,2]
[402738277,1768870233894,-298.47235783,0.00017799,2]